{"text_format":"1","workbook":"xlsx","n_sheets":3,"sheets":["Prompt","Cedula1B","Enviar"],"not_rendered":{"charts":0,"images":4,"macros":1,"external_links":0,"defined_names":1,"comments":0,"pivot_tables":0},"unopened":[],"bounds":{"document_bytes":16777216,"sheet_cells":100000,"rows_first":2000,"rows_last":500,"rows_between":2000,"halvings":0,"cell_chars":16384,"cell_head_chars":4096},"cells_cut":0,"cells_raw":0,"read":"whole","date_system":"1900"}

{"sheet":"Prompt","index":0,"n_rows":38,"n_cols":4,"rows_kept":38,"cut":false,"hidden":false,"merged":[[0,3,1,5],[3,1,5,8],[8,1,9,8],[37,1,38,8]]}
[null,null,null,"¡ATENCIÓN!"]
[]
[]
[null,"Para hacer uso de las funcionalidades de esta Cédula Electrónica debe habilitar macros"]
[]
[]
[]
[]
[null,"Si utiliza Excel 2000, 2002, 2003 siga el siguiente procedimiento:"]
[]
[]
[]
[]
[]
[]
[]
[]
[]
[]
[]
[]
[]
[]
[]
[]
[]
[]
[]
[]
[]
[]
[]
[]
[]
[]
[]
[]
[null,"Si utiliza Excel 2007 siga el siguiente procedimiento:"]

{"sheet":"Cedula1B","index":1,"n_rows":93,"n_cols":15,"rows_kept":93,"cut":false,"hidden":true,"merged":[[42,3,42,4],[50,13,50,14],[49,2,49,6],[49,7,49,9],[49,10,49,12],[49,13,49,14],[50,2,50,6],[50,7,50,9],[50,10,50,12],[45,2,45,14],[47,7,47,9],[48,13,48,14],[48,2,48,6],[47,10,47,12],[47,13,47,14],[48,7,48,9],[26,2,28,4],[35,5,36,6],[36,7,36,8],[35,2,37,4],[35,7,35,14],[36,11,36,12],[36,9,36,10],[36,13,36,14],[48,10,48,12],[14,5,14,13],[12,5,12,6],[1,13,3,14],[16,11,16,13],[16,5,16,8],[27,13,27,14],[26,5,27,6],[27,9,27,10],[27,7,27,8],[26,7,26,14],[27,11,27,12],[0,13,0,14],[1,5,1,11],[2,5,2,11],[3,5,3,11],[12,12,12,13]]}
[null,null,null,null,null,null,null,null,null,null,null,null,null,"CÉDULA"]
[null,null,null,null,null,"CENSO EDUCATIVO 2023",null,null,null,null,null,null,null,"1B"]
[null,null,null,null,null,"Educación Básica Regular"]
[null,null,null,null,null,"Inicial Escolarizada"]
[null,null,"Versión :",1]
[null,null,"INSTRUCCIONES DEL FORMATO ELECTRÓNICO "]
[]
[]
[]
[null,null,"IDENTIFICACIÓN DEL SERVICIO EDUCATIVO"]
[]
[]
[null,null,"1.  CÓDIGO MODULAR :",null,null,null,null,null,null,null,null,"  2.  CÓDIGO DE LOCAL EDUCATIVO :  "]
[]
[null,null,"3.  NOMBRE DEL SERVICIO:",null,null,""]
[]
[null,null,"4. DISTRITO :",null,null,"",null,null,null,null,"LOCALIDAD :  ",null,null,null,{"$f":"IF(M17=\"2: Privada\",\"X\",\"\")","v":""}]
[]
[]
[]
[null,null,"FORMA DE ATENCIÓN : ",null,null,null,null,"A2: Jardín",null,null,null,"A3: Cuna- Jardín"]
[]
[]
[null,null,"100. RESULTADO DEL EJERCICIO EDUCATIVO.\nSólo para alumnos de 3 a más años de edad."]
[null,null,"Complete y remita esta sección entre diciembre del año 2023 y enero del año 2024."]
[null,null,"101 - RESULTADO DEL EJERCICIO EDUCATIVO A DICIEMBRE DE 2023, POR EDAD Y SEXO."]
[null,null,"SITUACIÓN",null,null,"TOTAL",null,"EDAD Y SEXO"]
[null,null,null,null,null,null,null,3,null,4,null,5,null,"6 y más"]
[null,null,null,null,null,"H","M","H","M","H","M","H","M","H","M"]
["00",null,"TOTAL MATRÍCULA",null,null,{"$f":"SUM(F31:F34)","v":0},0,0,0,0,0,0,0,0,0]
["01",null,"Promovidos",null,null,{"$f":"SUM(H31,J31,L31,N31)","v":0},0]
["02",null,"Trasladados a otros SS.EE.",null,null,0,0]
["03",null,"Retirados",null,null,0,0]
["04",null,"Fallecidos",null,null,0,0]
[null,null,"102 - RETIRADOS POR EDAD Y SEXO, SEGÚN MOTIVO"]
[null,null,"MOTIVO",null,null,"TOTAL",null,"EDAD Y SEXO"]
[null,null,null,null,null,null,null,3,null,4,null,5,null,"6 y más"]
[null,null,null,null,null,"H","M","H","M","H","M","H","M","H","M"]
["00",null,"TOTAL",null,null,{"$f":"SUM(F40:F43)","v":0},0,0,0,0,0,{"$f":"SUM(L40:L43)","v":0},{"$f":"SUM(M40:M43)","v":0},{"$f":"SUM(N40:N43)","v":0},{"$f":"SUM(O40:O43)","v":0}]
["01",null,"Situación económica",null,null,{"$f":"SUM(H40,J40,L40,N40)","v":0},0]
["02",null,"Violencia",null,null,0,0]
["03",null,"Enfermedad",null,null,0,0]
["04",null,"Otros",null,null,0,0]
[null,null,"Nota.- Los totales de esta tabla deben ser iguales a los reportados en el rubro \"Retirados\" de la tabla 101, seún edad que corresponda."]
[]
[null,null,"DATOS DEL RESPONSABLE DEL LLENADO DE LA CÉDULA"]
[]
[null,null,null,"NOMBRES Y APELLIDOS",null,null,null,"CARGO",null,null,"CORREO ELECTRÓNICO",null,null,"TELÉFONO"]
["1"]
["2"]
["3"]
[]
[]
[]
["DIRECTOR(A)"]
["SUB DIRECTOR(A)"]
["DOCENTE"]
["COORDINADOR(A)"]
["ASESOR"]
["ADMINISTRATIVO"]
["ASISTENTE"]
["AUXILIAR"]
["SECRETARIA(O)"]
["ESTADÍSTICO"]
["ESPECIALISTA"]
["BIBLIOTECARIO"]
["CARE"]
["COMANDANTE PNP"]
["CONTADOR"]
["DAIP"]
["DIGITADOR(A)"]
["GERENTE"]
["JEFE ACADÉMICO"]
["JEFE ADMINISTRATIVO"]
["JEFE DE AREA"]
["JEFE DE LABORATORIO"]
["JEFE DE PERSONAL"]
["JEFE DE SEDE"]
["JEFE UNIDAD"]
["OFICINISTA"]
["OPERADOR DE SISTEMAS"]
["PERSONAL DE SERVICIO"]
["PROGRAMADOR"]
["PROMOTOR(A)"]
["PSICOLOGO"]
["REGISTRADOR(A)"]
["REPRESENTANTE LEGAL"]
["SOPORTE TECNOLOGICO"]
["TÉCNICO ADMINISTRATIVO"]
["TESORERO(A)"]
["TRABAJADOR SOCIAL"]
["TUTOR"]
["OTROS"]

{"sheet":"Enviar","index":2,"n_rows":9,"n_cols":3,"rows_kept":9,"cut":false,"hidden":true,"merged":[[0,0,0,3],[1,0,1,3]]}
["CENSO EDUCATIVO 2023"]
["RESULTADO DEL EJERCICIO EDUCATIVO"]
[]
[]
[null,"Paso 1:","Realice el ENVÍO con su clave EOL."]
[]
[null,"Paso 2:","Una vez realizado el ENVÍO,  Revise su constancia de envio."]
[]
[null,"  ADVERTENCIA","Asegúrese de registrar toda la información del nivel informante"]